bitfinex/quotes_ETHUSD_20251018
["timestamp","ask_amount","ask_price","bid_price","bid_amount"]
[1760792268316,0.02564314,3892.8,3892.5,0.17277004]
[1760792268525,0.1,3892.7,3892.5,0.17277004]
[1760792268722,0.1,3892.6,3892.5,0.17277004]
[1760792270321,0.1,3892.8,3892.5,2.74181307]
[1760792270495,0.128,3892.9,3892.5,2.74181307]
[1760792270694,0.12564314,3892.8,3892.5,2.74181307]
[1760792270924,0.1,3892.7,3892.6,2.56897703]
[1760792271498,0.1,3892.7,3892.5,0.17277004]
[1760792271499,0.14477142,3892.7,3892.5,0.17277004]
[1760792271699,0.1,3892.6,3892.5,0.17277004]
[1760792271901,0.1,3892.6,3892.5,2.74181307]
[1760792275040,0.1,3892.6,3892.5,0.17277004]
[1760792275331,0.1,3892.6,3892.5,2.74181307]
[1760792275738,0.1,3892.9,3892.5,2.74181307]
[1760792275916,0.1,3892.8,3892.5,2.74181307]
[1760792276119,0.2861,3893.1,3892.5,2.56904303]
[1760792276306,0.1,3893.0,3892.5,2.56904303]
[1760792276506,0.1,3892.9,3892.6,0.77261541]
[1760792276706,0.1,3892.8,3892.6,3.34158804]
[1760792277035,0.1,3892.7,3892.6,0.77261541]
[1760792277837,0.1,3892.7,3891.9,3.80645639]
[1760792278056,0.12564314,3892.6,3892.4,0.2861]
[1760792278208,0.02564314,3892.6,3892.4,0.2861]
[1760792278406,0.1,3892.5,3892.4,0.2861]
[1760792279141,0.1,3892.5,3892.4,0.2881]
[1760792280607,0.12564314,3892.5,3892.4,0.002]
[1760792281547,0.1,3892.5,3892.4,0.002]
[1760792281957,0.12564314,3892.5,3892.4,0.002]
[1760792283123,0.1,3892.5,3892.4,0.002]
[1760792283646,6.478,3892.5,3892.4,0.002]
[1760792283847,7.13294146,3892.5,3892.4,0.002]
[1760792285018,8.86094146,3892.5,3892.4,0.002]
[1760792286981,8.90572448,3892.5,3892.4,0.002]
[1760792289572,1.728,3892.2,3892.0,0.002]
[1760792289742,0.02564314,3892.1,3892.0,0.002]
[1760792289945,0.83860745,3892.1,3892.0,0.002]
[1760792290169,1.34168149,3892.1,3892.0,0.002]
[1760792290357,1.28646577,3892.1,3892.0,0.002]
[1760792290678,0.93860745,3892.1,3892.0,0.002]
[1760792295490,9.04260745,3892.1,3892.0,0.002]
[1760792295697,9.01696431,3892.1,3892.0,0.002]
[1760792296594,9.46481996,3892.1,3892.0,0.002]
[1760792297184,9.36481996,3892.1,3892.0,0.002]
[1760792298385,9.36481996,3892.1,3892.0,0.4707]
[1760792300869,9.36481996,3892.1,3892.0,0.002]
[1760792302703,8.9617486,3892.1,3892.0,0.002]
[1760792304825,8.9617486,3892.1,3892.0,0.4707]
[1760792305679,8.9617486,3892.1,3892.0,0.002]
[1760792307214,9.36478699,3892.1,3892.0,0.002]
[1760792312318,9.46478699,3892.1,3892.0,0.002]
[1760792313788,9.36478699,3892.1,3892.0,0.002]
[1760792315284,9.46478699,3892.1,3892.0,0.002]
[1760792317725,9.36478699,3892.1,3892.0,0.002]
[1760792319096,7.63678699,3892.1,3892.0,0.002]
[1760792319630,6.82382268,3892.1,3892.0,0.4623]
[1760792332853,6.82382268,3892.1,3892.0,0.002]
[1760792333262,8.65182268,3892.1,3892.0,0.002]
[1760792334036,8.55182268,3892.1,3892.0,0.002]
[1760792334243,8.65182268,3892.1,3892.0,0.002]
[1760792334451,9.51710495,3892.1,3892.0,0.002]
[1760792335071,9.41710495,3892.1,3892.0,0.002]
[1760792336757,9.01406656,3892.1,3892.0,0.002]
[1760792339664,9.41712487,3892.1,3892.0,0.002]
[1760792344632,9.51712487,3892.1,3892.0,0.002]
[1760792345030,9.11406656,3892.1,3892.0,0.002]
[1760792345437,9.01406656,3892.1,3892.0,0.002]
[1760792346479,9.11406656,3892.1,3892.0,0.002]
[1760792348634,1.728,3891.9,3891.6,0.002]
[1760792348838,1.1224498,3891.8,3891.6,0.002]
[1760792349443,1.52552083,3891.8,3891.6,0.002]
[1760792354561,8.102,3891.7,3891.6,0.002]
[1760792355281,8.14678982,3891.7,3891.6,0.002]
[1760792360071,8.14678982,3891.7,3891.6,0.4328]
[1760792360457,8.14678982,3891.7,3891.6,0.002]
[1760792360686,8.73631636,3891.7,3891.6,0.002]
[1760792363704,8.73631636,3891.7,3891.6,0.4328]
[1760792365270,6.41878982,3891.7,3891.6,0.8636]
[1760792366898,6.41878982,3891.7,3891.6,0.4328]
[1760792370312,8.14678982,3891.7,3891.6,0.4328]
[1760792371885,8.102,3891.7,3891.6,0.4328]
[1760792374317,8.1467899,3891.7,3891.6,0.4328]
[1760792374496,8.102,3891.7,3891.6,0.4328]
[1760792377234,8.102,3891.7,3891.6,0.8976]
[1760792377630,8.14678936,3891.7,3891.6,0.8976]
[1760792377924,8.14678936,3891.7,3891.6,0.4328]
[1760792380307,9.00187434,3891.7,3891.6,0.4328]
[1760792385632,9.00187434,3891.7,3891.6,0.8976]
[1760792390354,8.14678936,3891.7,3891.6,0.8976]
[1760792391348,6.41878936,3891.7,3891.6,0.8976]
[1760792391763,6.374,3891.7,3891.6,0.8976]
[1760792394126,6.41878774,3891.7,3891.6,0.8976]
[1760792395429,6.374,3891.7,3891.6,0.8976]
[1760792395642,6.41878772,3891.7,3891.6,0.8976]
[1760792395853,6.374,3891.7,3891.6,0.8976]
[1760792403600,6.502,3891.7,3891.6,0.8976]
[1760792404595,6.502,3891.7,3891.6,0.9028]
[1760792404907,6.374,3891.7,3891.6,0.9028]
[1760792406540,6.374,3891.7,3891.6,0.4328]
[1760792406670,7.15628327,3891.7,3891.6,0.4328]
[1760792407260,7.05628327,3891.7,3891.6,0.4328]
[1760792407694,7.15628327,3891.7,3891.6,0.4328]
[1760792408006,7.05628327,3891.7,3891.6,0.4328]
[1760792408205,8.88428327,3891.7,3891.6,0.002]
[1760792408361,22.16756083,3891.7,3891.6,0.002]
[1760792408673,13.85072883,3891.7,3891.6,0.002]
[1760792409202,13.85072883,3891.7,3891.3,0.10308228]
[1760792409203,1.728,3891.4,3891.3,0.10308228]
[1760792409365,9.184967,3891.3,3891.2,0.002]
[1760792409566,1.828,3891.3,3891.2,0.002]
[1760792409766,5.05148314,3891.3,3891.2,0.002]
[1760792410325,27.77721165,3891.3,3891.2,0.002]
[1760792410502,35.36719955,3891.2,3891.1,0.002]
[1760792410796,12.69398486,3891.2,3891.1,0.002]
[1760792410972,12.79398486,3891.2,3891.1,0.002]
[1760792411172,12.29341585,3891.2,3891.1,0.002]
[1760792411395,13.84694385,3891.2,3891.1,0.002]
[1760792411607,13.64350046,3890.9,3889.9,0.002]
[1760792411919,20.85023063,3890.9,3889.9,0.002]
[1760792412118,20.95083063,3890.9,3889.9,0.002]
[1760792412278,1.728,3890.8,3889.9,0.002]
[1760792412626,32.14294868,3890.4,3889.9,0.002]
[1760792412786,24.05272695,3890.4,3889.9,0.002]
[1760792412986,24.05272695,3890.4,3889.5,0.002]
[1760792412987,0.6336,3889.8,3889.5,0.002]
[1760792413325,27.42678545,3889.6,3889.5,0.002]
[1760792413821,28.16094425,3889.6,3889.5,0.002]
[1760792414320,8.07406352,3889.6,3889.5,0.002]
[1760792414492,9.27475773,3889.6,3889.5,0.002]
[1760792414691,7.37682473,3889.6,3889.5,0.002]
[1760792415016,9.08519873,3889.6,3889.5,0.002]
[1760792415227,3.23211773,3889.6,3889.5,0.002]
[1760792415388,3.25776087,3889.6,3889.5,0.002]
[1760792415589,3.66110591,3889.6,3889.5,0.002]
[1760792417025,2.97351773,3889.6,3889.5,0.002]
[1760792417186,1.77282352,3889.6,3889.5,0.4552]
[1760792417859,1.77282352,3889.6,3889.5,0.002]
[1760792419634,2.1761327,3889.6,3889.5,0.4552]
[1760792422544,8.5501327,3889.6,3889.5,0.4552]
[1760792422742,9.40514597,3889.6,3889.5,0.4552]
[1760792423241,9.00183679,3889.6,3889.5,0.9084]
[1760792423641,9.00183679,3889.6,3889.5,0.4552]
[1760792424544,8.14682352,3889.6,3889.5,0.4552]
[1760792426923,8.14682352,3889.6,3889.5,0.002]
[1760792427755,8.64974068,3889.6,3889.5,0.002]
[1760792428634,8.64974068,3889.6,3889.1,0.002]
[1760792428635,6.37,3889.4,3889.1,0.002]
[1760792428838,1.75364314,3889.3,3889.1,0.002]
[1760792429155,1.26965211,3889.2,3889.1,0.002]
[1760792429836,9.77100074,3889.2,3889.1,0.002]
[1760792431858,9.81581854,3889.2,3889.1,0.002]
[1760792434447,1.728,3888.8,3888.7,0.002]
[1760792434637,8.092,3888.8,3888.7,0.4682]
[1760792434847,8.69168009,3888.8,3888.7,0.4682]
[1760792435158,9.13986297,3888.8,3888.7,0.4682]
[1760792435720,9.13986297,3888.8,3888.7,0.002]
[1760792436223,9.13986297,3888.8,3888.7,0.4682]
[1760792437065,9.13986297,3888.8,3888.7,0.002]
[1760792438465,9.13986297,3888.8,3888.7,0.4682]
[1760792438893,8.73649919,3888.8,3888.7,0.4682]
[1760792439255,8.73649919,3888.8,3888.7,0.002]
[1760792442998,8.83609919,3888.8,3888.7,0.002]
[1760792443575,8.79128009,3888.8,3888.7,0.002]
[1760792446109,8.83481729,3888.8,3888.7,0.002]
[1760792446307,9.23822001,3888.8,3888.7,0.002]
[1760792446673,18.58855501,3888.8,3888.7,0.002]
[1760792446880,11.84852301,3888.8,3888.7,0.002]
[1760792448000,26.96040701,3888.8,3888.7,0.002]
[1760792448207,20.17948701,3888.8,3888.7,0.002]
[1760792448513,8.088,3888.6,3888.5,0.002]
[1760792448814,12.66087791,3888.6,3888.5,0.002]
[1760792448996,12.76047791,3888.6,3888.5,0.002]
[1760792451482,24.39486891,3888.6,3888.5,0.002]
[1760792451685,1.728,3888.5,3887.8,0.431376]
[1760792451891,1.856,3888.3,3887.8,0.431376]
[1760792452193,0.02564314,3888.2,3887.8,0.431376]
[1760792452402,0.47390704,3888.2,3887.8,0.431376]
[1760792452825,1.728,3888.0,3887.8,0.431376]
[1760792453128,0.02564314,3887.9,3887.8,0.431376]
[1760792453326,0.02564314,3887.9,3887.0,2.79427758]
[1760792453327,0.128,3887.8,3887.0,2.79427758]
[1760792453497,0.128,3887.8,3887.1,2.57256387]
[1760792453691,0.128,3887.8,3887.7,0.6898]
[1760792453897,0.17282557,3887.8,3887.7,0.6898]
[1760792455527,0.19846871,3887.8,3887.7,0.6898]
[1760792456426,6.55846871,3887.8,3887.7,0.6898]
[1760792456621,6.53282557,3887.8,3887.7,0.6898]
[1760792457902,6.93628081,3887.8,3887.7,0.6898]
[1760792458629,8.66428081,3887.8,3887.7,0.6898]
[1760792460522,8.66428081,3887.8,3887.7,0.002]
[1760792460724,9.53070889,3887.8,3887.7,0.002]
[1760792461437,14.1035868,3887.8,3887.7,0.002]
[1760792461637,14.2025868,3887.8,3887.7,0.002]
[1760792462810,14.15776123,3887.8,3887.7,0.002]
[1760792463629,13.30648094,3887.8,3887.7,0.002]
[1760792463830,34.62178194,3887.8,3887.7,0.002]
[1760792464034,43.40548094,3887.8,3887.7,0.002]
[1760792464235,32.73373826,3887.8,3887.7,0.002]
[1760792464442,22.25377026,3887.8,3887.7,0.002]
[1760792464613,24.82591903,3887.8,3887.7,0.002]
[1760792464932,25.45951903,3887.8,3887.7,0.002]
[1760792465235,27.34748226,3887.8,3887.7,0.002]
[1760792465739,29.91963103,3887.8,3887.7,0.002]
[1760792465933,29.96447225,3887.8,3887.7,0.002]
[1760792466125,46.57797625,3887.8,3887.7,0.002]
[1760792466731,43.14203548,3887.8,3887.7,0.002]
[1760792466936,42.81667492,3887.8,3887.7,0.002]
[1760792467115,43.66897492,3887.8,3887.7,0.002]
[1760792467311,45.97466487,3887.8,3887.7,0.002]
[1760792467515,42.51422743,3887.8,3887.7,0.002]
[1760792468347,45.26761543,3887.8,3887.7,0.002]
[1760792468557,45.26761543,3887.8,3887.4,0.002]
[1760792468558,33.97818026,3887.5,3887.4,0.002]
[1760792468758,49.30764018,3887.5,3887.4,0.002]
[1760792468918,45.8937408,3887.5,3887.4,0.002]
[1760792469249,45.8937408,3887.5,3886.2,0.4744]
[1760792469250,14.741383,3887.0,3886.2,0.4335553]
[1760792469439,5.54859762,3886.3,3886.2,0.4335553]
[1760792469818,1.728,3886.2,3886.0,0.2216]
[1760792470152,0.02564314,3886.1,3885.3,1.2]
[1760792470350,3.82059762,3886.0,3885.3,1.2]
[1760792470649,1.75364314,3885.9,3885.3,1.2]
[1760792470849,3.82059762,3885.7,3885.3,1.2]
[1760792471017,0.02564314,3885.6,3885.3,1.2]
[1760792471222,0.02564314,3885.6,3885.4,0.4744]
[1760792471841,0.02564314,3885.6,3885.5,0.4744]
[1760792472048,0.44855776,3885.8,3885.5,0.4744]
[1760792472049,1.75364314,3885.7,3885.5,0.4744]
[1760792472822,1.75364314,3885.7,3885.3,1.2]
[1760792473046,1.75364314,3885.7,3885.4,0.4744]
[1760792473252,5.54859762,3885.5,3885.3,1.2]
[1760792473450,1.75364314,3885.4,3885.3,1.2]
[1760792473961,6.849443,3885.4,3885.3,1.2]
[1760792474259,6.89431584,3885.4,3885.3,1.2]
[1760792474457,7.62926072,3885.4,3885.3,1.2]
[1760792474652,7.62926072,3885.4,3885.3,1.202]
[1760792474827,14.68979972,3885.4,3885.3,1.202]
[1760792475028,17.2635373,3885.4,3885.3,1.202]
[1760792475624,27.11208182,3885.3,3885.2,0.6]
[1760792475824,29.0273059,3885.3,3885.2,0.6]
[1760792476239,26.2127609,3885.3,3885.2,0.6]
[1760792476628,26.61656543,3885.3,3885.2,0.6]
[1760792476953,31.60201643,3885.3,3885.2,0.6]
[1760792477530,29.95591743,3885.3,3885.2,0.6]
[1760792477826,30.28127799,3885.3,3885.2,0.6]
[1760792478058,30.15444746,3885.3,3885.2,0.6]
[1760792478425,23.83785846,3885.3,3885.2,0.6]
[1760792478627,18.85054464,3885.3,3885.2,0.6]
[1760792478827,20.57146164,3885.3,3885.2,0.6]
[1760792479064,14.37791408,3885.3,3885.2,0.6]
[1760792479463,9.58802808,3885.3,3885.2,0.6]
[1760792479658,11.87826808,3885.3,3885.2,0.6]
[1760792479860,9.58802808,3885.3,3885.2,0.6]
[1760792480170,6.36,3885.3,3885.2,1.0744]
[1760792480963,8.088,3885.3,3885.2,1.0744]
[1760792481164,8.49176089,3885.3,3885.2,1.0744]
[1760792484937,8.088,3885.3,3885.2,1.0744]
[1760792487182,3.20681672,3886.2,3885.2,1.0744]
[1760792487183,0.1921,3886.7,3885.2,1.0744]
[1760792487356,3.82059762,3886.5,3885.3,0.60425]
[1760792487557,0.2415,3887.0,3885.3,0.60425]
[1760792487558,0.0448655,3885.4,3885.3,0.12985]
[1760792487900,0.128,3885.5,3885.3,0.12985]
[1760792488055,0.04486194,3885.4,3885.3,0.60425]
[1760792488652,0.04486194,3885.4,3885.3,0.4744]
[1760792490461,0.04486194,3885.4,3885.3,3.04820382]
[1760792490681,0.04486194,3885.4,3885.3,0.4744]
[1760792493166,0.04586194,3885.4,3885.3,0.4744]
[1760792494203,0.001,3885.4,3885.3,0.4744]
[1760792494565,3.82159762,3885.4,3885.2,0.6]
[1760792494763,0.02564314,3885.3,3885.2,0.6]
[1760792496495,1.86004314,3885.3,3885.2,0.6]
[1760792497083,11.61294414,3885.3,3885.2,0.55513]
[1760792497413,1.8344,3885.3,3885.2,0.55513]
[1760792497613,14.22897214,3885.3,3885.2,0.55513]
[1760792497818,14.203329,3885.3,3885.2,0.55513]
[1760792497994,16.64525356,3885.3,3885.2,0.55513]
[1760792498189,16.69012589,3885.3,3885.2,0.55513]
[1760792498596,19.94839389,3885.3,3885.2,0.55513]
[1760792498791,8.54800089,3885.3,3885.2,0.55513]
[1760792499181,8.9517934,3885.3,3885.2,0.55513]
[1760792499688,14.7938004,3885.3,3885.2,0.55513]
[1760792500085,18.00120422,3885.3,3885.2,0.55513]
[1760792500618,25.22538022,3885.3,3885.2,0.55513]
[1760792500821,22.6515764,3885.3,3885.2,0.55513]
[1760792501207,19.9062774,3885.3,3885.2,0.55513]
[1760792501628,26.67685122,3885.3,3885.2,0.55513]
[1760792501914,21.0597204,3885.3,3885.2,0.55513]
[1760792502625,7.52687,3884.6,3884.2,0.4748]
[1760792502790,12.10015462,3884.6,3883.2,2.57516716]
[1760792503120,12.10015462,3884.6,3884.5,1.0768]
[1760792503316,12.54886403,3884.6,3884.5,1.0768]
[1760792503516,11.39234299,3884.6,3884.5,1.0768]
[1760792503722,7.57174537,3884.6,3884.5,1.0768]
[1760792506733,7.97556175,3884.6,3884.5,1.0768]
[1760792510430,7.97556175,3884.6,3884.5,0.602]
[1760792511201,11.79615937,3884.6,3884.5,0.602]
[1760792511706,12.98641531,3884.6,3884.5,0.602]
[1760792511914,13.09281531,3884.6,3884.5,0.602]
[1760792512847,27.35646131,3884.6,3884.5,0.602]
[1760792513005,17.03974531,3884.6,3884.5,0.602]
[1760792514340,17.36510587,3884.6,3884.5,0.602]
[1760792514550,13.94537587,3884.6,3884.5,0.602]
[1760792514715,16.69403587,3884.6,3884.5,0.602]
[1760792516430,16.29021949,3884.6,3884.5,0.602]
[1760792517349,15.96485893,3884.6,3884.5,0.602]
[1760792518508,15.96485893,3884.6,3884.1,0.002]
[1760792518509,4.71807,3883.9,3883.7,0.002]
[1760792518725,1.728,3884.5,3883.7,0.002]
[1760792518726,4.71807,3883.8,3883.7,0.002]
[1760792519146,4.76294625,3883.8,3883.7,0.002]
[1760792520519,4.76294625,3883.8,3883.7,0.4768]
[1760792522536,4.76294625,3883.8,3883.7,0.002]
[1760792523636,4.76294625,3883.8,3883.7,0.4768]
[1760792523842,4.76294625,3883.8,3883.7,0.002]
[1760792524238,4.76294625,3883.8,3883.7,0.4495]
[1760792525240,4.76294625,3883.8,3883.7,0.75195585]
[1760792525439,4.76294625,3883.8,3883.7,0.4495]
[1760792526412,6.49094625,3883.8,3883.7,0.002]
[1760792526617,6.89324625,3883.8,3883.7,0.002]
[1760792527322,6.84837,3883.8,3883.7,0.002]
[1760792527923,7.25227365,3883.8,3883.7,0.002]
[1760792528161,17.51790326,3883.8,3883.7,0.002]
[1760792528327,17.14817126,3883.8,3883.7,0.002]
[1760792528527,12.59171226,3883.8,3883.7,0.002]
[1760792529626,12.63659484,3883.8,3883.7,0.002]
[1760792530234,8.0440436,3883.8,3883.7,0.002]
[1760792532123,7.6417436,3883.8,3883.7,0.002]
[1760792532324,13.3131546,3883.8,3883.7,0.002]
[1760792532566,8.0440436,3883.8,3883.7,0.002]
[1760792532771,10.74944595,3883.8,3883.7,0.002]
[1760792533168,7.64013995,3883.8,3883.7,0.002]
[1760792533768,14.49627695,3883.8,3883.7,0.002]
[1760792533927,9.72058695,3883.8,3883.7,0.002]
[1760792534557,7.64013995,3883.8,3883.7,0.002]
[1760792535472,7.23783995,3883.8,3883.7,0.002]
[1760792536156,7.64176731,3883.8,3883.7,0.002]
[1760792536963,7.64176731,3883.8,3883.7,0.4737]
[1760792536964,6.89487994,3883.8,3883.7,0.4737]
[1760792537158,6.84999736,3883.8,3883.7,0.4737]
[1760792538342,6.84999736,3883.8,3883.7,0.002]
[1760792539858,6.84999736,3883.8,3883.7,0.4737]
[1760792540162,6.89487637,3883.8,3883.7,0.4737]
[1760792540746,6.89487637,3883.8,3883.7,0.002]
[1760792540923,6.89487637,3883.8,3883.7,0.4737]
[1760792542459,6.89487637,3883.8,3883.7,0.002]
[1760792542660,7.58436401,3883.8,3883.7,0.002]
[1760792542978,6.49094901,3883.8,3883.7,0.002]
[1760792545628,6.89324901,3883.8,3883.7,0.002]
[1760792546152,6.89485023,3883.8,3883.7,0.002]
[1760792547729,7.29715023,3883.8,3883.7,0.002]
[1760792547935,6.89485023,3883.8,3883.7,0.002]
[1760792548631,8.50778038,3883.8,3883.7,0.002]
[1760792549040,8.10548038,3883.8,3883.7,0.002]
[1760792549271,6.89485023,3883.8,3883.7,0.002]
[1760792550373,6.89485023,3883.8,3883.7,0.4737]
[1760792551768,6.89485023,3883.8,3883.7,0.002]
[1760792551970,6.89485023,3883.8,3883.7,0.4737]
[1760792552296,6.49094901,3883.8,3883.7,0.4737]
[1760792556878,6.49094901,3883.8,3883.7,0.002]
[1760792557090,7.58073102,3883.8,3883.7,0.002]
[1760792557588,7.18053102,3883.8,3883.7,0.002]
[1760792558565,6.49094901,3883.8,3883.7,0.002]
[1760792559303,6.89114901,3883.8,3883.7,0.002]
[1760792559525,6.49094901,3883.8,3883.7,0.002]
[1760792560317,6.89114901,3883.8,3883.7,0.002]
[1760792561810,6.49094901,3883.8,3883.7,0.002]
[1760792562370,6.49094901,3883.8,3883.7,0.4418]
[1760792563705,6.44607,3883.8,3883.7,0.4418]
[1760792564491,1.728,3883.8,3883.7,0.4418]
[1760792565200,1.856,3883.8,3883.7,0.4418]
[1760792567503,1.90087618,3883.8,3883.7,0.4418]
[1760792572204,1.90087618,3883.8,3883.7,0.002]
[1760792572823,2.30475504,3883.8,3883.7,0.002]
[1760792576439,2.30475504,3883.8,3883.7,0.4418]
[1760792577239,2.30475504,3883.8,3883.7,0.002]
[1760792580421,2.30475504,3883.8,3883.7,0.4418]
[1760792581450,0.57675504,3883.8,3883.7,3.36252331]
[1760792581619,0.04487618,3883.8,3883.7,3.36252331]
[1760792582638,0.04487618,3883.8,3883.7,0.78765914]
[1760792582951,0.57307618,3883.8,3883.7,0.002]
[1760792583535,0.17287618,3883.8,3883.7,0.002]
[1760792584559,0.17287618,3883.8,3883.7,0.4755]
[1760792584770,0.04487618,3883.8,3883.7,0.4755]
[1760792584969,0.04487618,3883.8,3883.7,3.05036417]
[1760792585260,0.04487618,3883.8,3883.7,3.67245384]
[1760792585634,0.04487618,3883.8,3883.7,3.69820248]
[1760792585867,0.001,3883.9,3883.8,2.57479787]
[1760792586228,0.001,3883.9,3883.8,3.04079787]
[1760792586562,0.001,3883.9,3883.8,3.80239787]
[1760792586757,0.001,3883.9,3883.8,4.54671304]
[1760792586987,0.001,3883.9,3883.8,0.87231517]
[1760792587136,0.001,3883.9,3883.8,0.594]
[1760792588438,0.001,3883.9,3883.8,3.17476971]
[1760792588870,0.001,3883.9,3883.8,3.16879787]
[1760792589658,0.001,3883.9,3883.8,0.594]
[1760792589863,0.001,3883.9,3883.8,0.128]
[1760792590063,0.001,3883.9,3883.8,0.74676501]
[1760792590267,0.001,3883.9,3883.8,3.78756288]
[1760792590838,0.001,3883.9,3883.8,3.89080693]
[1760792591974,0.001,3883.9,3883.8,0.85000906]
[1760792592176,0.001,3883.9,3883.8,0.23124405]
[1760792592799,0.001,3883.9,3883.8,0.10324405]
[1760792593089,0.3994,3883.9,3883.8,0.10324405]
[1760792593383,0.6201,3883.9,3883.8,0.10324405]
[1760792594978,0.128,3883.8,3883.7,0.002]
[1760792595194,0.15364314,3883.8,3883.7,0.002]
[1760792595356,0.55034314,3883.8,3883.7,0.002]
[1760792596866,0.59522264,3883.8,3883.7,0.002]
[1760792597853,0.99911216,3883.8,3883.7,0.002]
[1760792598287,1.70866982,3883.8,3883.7,0.002]
[1760792599384,8.15473982,3883.8,3883.7,0.002]
[1760792599589,8.12909668,3883.8,3883.7,0.002]
[1760792601757,15.41000668,3883.8,3883.7,0.002]
[1760792601958,16.04360668,3883.8,3883.7,0.002]
[1760792602788,20.22905268,3883.8,3883.7,0.002]
[1760792603900,18.75185068,3883.8,3883.7,0.002]
[1760792604269,21.32664855,3883.8,3883.7,0.002]
[1760792604592,21.32664855,3883.8,3883.6,0.002]
[1760792604593,24.6117254,3883.7,3883.6,0.002]
[1760792604811,13.71973367,3883.7,3883.6,0.002]
[1760792605020,44.51965913,3883.7,3883.6,0.002]
[1760792606462,29.42700396,3883.7,3883.6,0.002]
[1760792606699,29.1016434,3883.7,3883.6,0.002]
[1760792606904,11.6194344,3883.7,3883.6,0.002]
[1760792607199,15.9583364,3883.7,3883.6,0.002]
[1760792607371,17.57651004,3883.7,3883.6,0.002]
[1760792607886,25.14183404,3883.7,3883.6,0.002]
[1760792608084,25.18672197,3883.7,3883.6,0.002]
[1760792608605,27.76158614,3883.7,3883.6,0.002]
[1760792608974,45.85736014,3883.7,3883.6,0.002]
[1760792609374,46.26135029,3883.7,3883.6,0.002]
[1760792610188,33.03575612,3883.7,3883.6,0.002]
[1760792610395,35.61062029,3883.7,3883.6,0.002]
[1760792611098,38.61261029,3883.7,3883.6,0.002]
[1760792611401,13.955988,3883.4,3883.3,0.002]
[1760792611570,21.41743569,3883.4,3883.3,0.002]
[1760792611772,21.81413569,3883.4,3883.3,0.002]
[1760792612011,20.64913569,3883.4,3883.3,0.002]
[1760792613907,20.25243569,3883.4,3883.3,0.002]
[1760792614108,15.51793769,3883.4,3883.3,0.002]
[1760792614285,13.20765769,3883.4,3883.3,0.002]
[1760792614485,9.85293769,3883.4,3883.3,0.002]
[1760792614885,14.56700769,3883.4,3883.3,0.002]
[1760792615282,12.17551769,3883.4,3883.3,0.002]
[1760792616286,22.26974469,3883.4,3883.3,0.002]
[1760792616607,20.02947869,3883.4,3883.3,0.002]
[1760792616998,17.05404569,3883.4,3883.3,0.002]
[1760792617524,17.45074569,3883.4,3883.3,0.002]
[1760792617830,12.17551769,3883.4,3883.3,0.002]
[1760792620015,12.57221769,3883.4,3883.3,0.002]
[1760792620595,12.17551769,3883.4,3883.3,0.002]
[1760792620812,1.728,3883.2,3882.9,0.002]
[1760792621018,1.728,3883.0,3882.9,0.002]
[1760792621384,2.2025241,3883.0,3882.9,0.002]
[1760792623984,6.3475885,3883.0,3882.9,0.002]
[1760792624283,6.32194536,3883.0,3882.9,0.002]
[1760792626608,11.03401536,3883.0,3882.9,0.002]
[1760792626816,12.30010207,3883.0,3882.9,0.002]
[1760792627416,22.95182607,3883.0,3882.9,0.002]
[1760792627621,20.50964607,3883.0,3882.9,0.002]
[1760792627935,20.46475183,3883.0,3882.9,0.002]
[1760792629895,41.80964183,3883.0,3882.2,0.410005]
[1760792630205,4.1450644,3882.7,3882.2,0.410005]
[1760792630409,0.02564314,3882.6,3882.2,0.410005]
[1760792631105,0.02564314,3882.6,3882.0,0.6847]
[1760792631311,1.728,3882.4,3882.0,0.6847]
[1760792631539,0.02564314,3882.3,3882.0,0.6847]
[1760792631890,0.02564314,3882.3,3882.0,0.2318]
[1760792632095,1.728,3882.1,3881.6,0.2066]
[1760792632300,0.02564314,3882.0,3881.8,0.77490846]
[1760792632604,0.02564314,3882.0,3881.6,0.6575]
[1760792632809,0.02564314,3882.0,3881.7,0.4509]
[1760792633010,0.07054419,3882.0,3881.7,0.4509]
[1760792633212,0.02564314,3882.0,3881.7,0.4509]
[1760792633733,0.02564314,3882.0,3881.6,0.98150846]
[1760792634038,0.02564314,3882.0,3881.8,0.4509]
[1760792634202,1.17056801,3882.0,3881.6,1.43240846]
[1760792634401,1.17056801,3882.0,3881.6,0.6575]
[1760792634939,1.17056801,3882.0,3881.6,0.2066]
[1760792635129,1.17056801,3882.0,3881.7,0.4509]
[1760792635631,1.728,3882.1,3881.8,0.4509]
[1760792636036,1.77290144,3882.1,3881.8,0.4509]
[1760792636833,1.77290144,3882.1,3881.6,0.98153248]
[1760792637002,1.77290144,3882.1,3881.9,0.4509]
[1760792637399,1.77290144,3882.1,3882.0,0.4509]
[1760792639337,1.77290144,3882.1,3882.0,0.75359773]
[1760792639636,1.77290144,3882.1,3882.0,1.52839612]
[1760792640136,1.90090144,3882.1,3882.0,1.52839612]
[1760792640432,0.17290144,3882.1,3882.0,1.52839612]
[1760792641104,0.17290144,3882.1,3882.0,1.22569839]
[1760792642752,0.17290144,3882.1,3882.0,1.22769839]
[1760792643533,0.17290144,3882.1,3882.0,3.80369014]
[1760792644016,0.17290144,3882.1,3882.0,1.22769839]
[1760792645915,0.17290144,3882.1,3882.0,0.77679839]
[1760792646916,0.19854458,3882.1,3882.0,0.77679839]
[1760792647141,0.62774458,3882.1,3882.0,0.002]
[1760792647372,1.16172604,3882.1,3882.0,0.002]
[1760792647666,1.1168246,3882.1,3882.0,0.002]
[1760792647880,2.8448246,3882.1,3882.0,0.002]
[1760792648375,27.30633136,3882.1,3882.0,0.002]